bitfinex/quotes_ETHUSD_20241120
["timestamp","ask_amount","ask_price","bid_price","bid_amount"]
[1732074738829,0.8033,3093.3,3092.7,0.64668]
[1732074739034,1.21715304,3093.3,3092.5,1.46272]
[1732074739189,0.08083934,3093.2,3092.5,1.46272]
[1732074739387,1.29799238,3093.3,3092.7,0.64666]
[1732074739632,0.8033,3093.3,3092.7,0.64666]
[1732074739788,0.8033,3093.3,3092.9,0.64663]
[1732074740151,0.005,3093.3,3093.1,0.64659]
[1732074741006,0.005,3093.3,3093.2,0.64657]
[1732074744591,0.005,3093.3,3093.0,0.64661]
[1732074746228,0.08582836,3093.3,3093.0,0.64661]
[1732074746392,0.08582836,3093.3,3092.8,1.29329]
[1732074746587,0.08582836,3093.3,3092.8,0.64664]
[1732074746814,0.08083452,3093.2,3092.8,0.64664]
[1732074747032,0.005,3093.3,3092.8,0.64664]
[1732074747233,0.08083382,3093.2,3092.5,0.8262]
[1732074747405,0.42564442,3093.3,3092.8,0.64665]
[1732074747613,0.005,3093.3,3092.8,0.64665]
[1732074747918,0.005,3093.3,3092.6,0.64669]
[1732074747919,0.08083372,3093.2,3092.6,0.64669]
[1732074748122,0.08083372,3093.2,3092.7,0.64668]
[1732074748320,3.23319,3093.0,3092.4,0.64674]
[1732074748519,3.23319,3093.0,3092.3,0.8262]
[1732074748520,3.31414478,3092.9,3092.3,0.8262]
[1732074748735,3.31414478,3092.9,3092.3,0.64676]
[1732074749595,3.2333,3092.9,3092.4,0.64674]
[1732074750235,0.86634424,3093.1,3092.1,0.6468]
[1732074750446,0.86634424,3093.1,3092.7,0.64667]
[1732074750447,0.08083893,3093.0,3092.7,0.64667]
[1732074750750,0.08083893,3093.0,3092.9,0.64664]
[1732074751030,0.005,3093.3,3092.8,1.47284]
[1732074751232,0.005,3093.3,3092.7,0.64667]
[1732074751392,0.08583351,3093.3,3092.7,0.64667]
[1732074751591,0.08583351,3093.3,3092.7,1.29334]
[1732074751804,0.08583351,3093.3,3092.7,0.64667]
[1732074752135,3.7392949,3093.3,3092.7,0.64666]
[1732074752632,0.5064949,3093.3,3092.7,0.64666]
[1732074752837,0.08583351,3093.3,3092.8,0.64665]
[1732074752992,0.005,3093.3,3092.8,0.64665]
[1732074753397,0.005,3093.3,3092.6,0.64668]
[1732074753398,0.08083348,3093.2,3092.6,0.64668]
[1732074753646,3.73937123,3093.3,3092.6,0.64669]
[1732074753842,3.2329,3093.2,3092.6,0.64669]
[1732074754139,3.2329,3093.2,3092.5,0.64671]
[1732074754437,3.31383683,3093.1,3092.5,0.64671]
[1732074754599,0.08083683,3093.1,3092.6,0.64669]
[1732074754795,0.42565439,3093.3,3092.7,0.64667]
[1732074754796,3.65845439,3093.3,3092.7,0.64667]
[1732074755212,0.68911744,3093.2,3092.7,0.64667]
[1732074755519,0.50649382,3093.3,3092.5,0.64671]
[1732074755725,3.23296,3093.2,3092.6,0.6467]
[1732074755930,3.23321,3092.9,3092.2,0.64677]
[1732074756750,3.23321,3092.9,3092.3,0.64676]
[1732074756951,3.57502846,3092.9,3092.3,0.64676]
[1732074757547,0.34181846,3092.9,3092.3,0.64676]
[1732074757758,3.23316,3093.0,3092.4,0.64674]
[1732074758065,0.86634501,3093.1,3092.1,1.473]
[1732074758066,3.2334,3092.8,3092.1,1.473]
[1732074758262,0.41227258,3092.7,3092.1,1.473]
[1732074758559,0.08084813,3092.7,3092.1,1.473]
[1732074758931,3.31426813,3092.7,3092.1,0.6468]
[1732074759128,0.7855,3092.6,3092.1,0.6468]
[1732074759316,0.08084792,3092.5,3092.1,0.6468]
[1732074760764,0.7855,3092.6,3092.2,0.64678]
[1732074763245,3.31422898,3092.8,3092.2,0.64678]
[1732074763447,8.82523473,3093.3,3092.6,0.64669]
[1732074763448,0.7537,3093.2,3092.6,0.64669]
[1732074763770,3.98661,3093.2,3092.6,0.6467]
[1732074764145,0.7537,3093.2,3092.7,0.64668]
[1732074764350,3.98659,3093.2,3092.6,0.6467]
[1732074764985,3.23302,3093.1,3092.4,1.44973]
[1732074765298,0.08083655,3093.1,3092.6,0.64669]
[1732074765457,0.08083655,3093.1,3092.7,0.64667]
[1732074765797,0.7537,3093.2,3092.7,0.64667]
[1732074766352,0.7537,3093.2,3092.8,0.64666]
[1732074766589,3.23322,3092.9,3092.4,0.803]
[1732074766905,3.23318,3093.0,3092.4,1.44974]
[1732074768187,3.23318,3093.0,3092.4,0.803]
[1732074768396,0.7537,3093.2,3092.7,0.64668]
[1732074768609,0.7537,3093.2,3092.7,0.64666]
[1732074769456,4.06744542,3093.2,3092.6,0.6467]
[1732074769661,4.06744542,3093.2,3092.5,1.29341]
[1732074769662,3.98661,3093.2,3092.5,1.29341]
[1732074769862,3.98661,3093.2,3092.6,0.64669]
[1732074771267,3.233,3093.1,3092.6,0.64669]
[1732074771468,0.0808354,3093.0,3092.6,0.64669]
[1732074771654,3.233,3093.1,3092.6,0.64669]
[1732074772197,3.23312,3093.0,3092.4,1.44974]
[1732074772403,3.63217,3093.1,3092.5,0.64672]
[1732074772693,3.63217,3093.1,3092.5,0.6467]
[1732074773194,0.39917,3093.1,3092.6,0.64669]
[1732074773994,0.39917,3093.1,3092.5,0.6467]
[1732074774303,0.7537,3093.2,3092.5,0.6467]
[1732074774453,0.08083403,3093.1,3092.5,0.6467]
[1732074774781,0.08083403,3093.1,3092.6,0.6467]
[1732074774992,0.08083403,3093.1,3092.7,0.64668]
[1732074777381,0.08083403,3093.1,3092.8,0.803]
[1732074777599,0.005,3093.3,3093.2,1.44957]
[1732074777804,0.005,3093.3,3093.2,1.659187]
[1732074780639,0.005,3093.3,3092.4,0.64674]
[1732074780930,0.005,3093.3,3092.9,0.64662]
[1732074781078,0.8274,3093.2,3092.5,0.64671]
[1732074781290,0.08083742,3093.1,3092.5,0.64671]
[1732074781493,3.31389742,3093.1,3092.3,1.43536]
[1732074781701,3.31384742,3093.1,3092.5,0.64671]
[1732074781936,4.09321515,3093.1,3092.5,0.64671]
[1732074782733,4.09321515,3093.1,3092.3,1.43536]
[1732074783034,4.09321515,3093.1,3092.3,2.08211]
[1732074783248,4.09321515,3093.1,3092.4,0.64674]
[1732074783755,4.09321515,3093.1,3092.5,0.64672]
[1732074784333,0.86020515,3093.1,3092.6,0.32335]
[1732074784634,0.77936773,3093.1,3092.6,0.32335]
[1732074784929,0.005,3093.3,3092.4,0.7886]
[1732074785135,3.23289,3093.2,3092.4,0.7886]
[1732074785353,3.63771012,3093.1,3092.4,0.32337]
[1732074785897,0.323789,3093.1,3092.5,0.32335]
[1732074786206,0.323789,3093.1,3092.4,0.32337]
[1732074786415,0.323789,3093.1,3092.6,0.32335]
[1732074786911,0.323789,3093.1,3092.3,0.32338]
[1732074786912,0.44459191,3093.0,3092.3,0.32338]
[1732074787118,4.06061,3092.9,3092.3,0.32338]
[1732074787425,4.06061,3092.9,3091.3,3.32348]
[1732074787426,3.23352,3092.6,3091.9,0.32341]
[1732074787595,0.08085044,3092.5,3091.8,0.7886]
[1732074787940,0.8274,3093.1,3092.1,0.7886]
[1732074788241,0.8274,3093.1,3091.6,0.02]
[1732074788242,0.8324,3093.3,3092.8,0.32332]
[1732074788536,0.8324,3093.3,3092.7,0.32334]
[1732074788745,0.406509,3093.2,3092.7,0.32334]
[1732074788953,0.8324,3093.3,3092.7,0.32334]
[1732074788954,4.06519,3093.3,3092.7,0.32334]
[1732074789659,0.8324,3093.3,3092.7,0.32334]
[1732074790007,0.8324,3093.3,3092.4,0.7886]
[1732074790008,0.8324,3093.3,3092.9,0.32331]
[1732074790207,0.8324,3093.3,3092.4,0.7886]
[1732074790208,0.8324,3093.3,3092.7,0.32333]
[1732074790526,0.08083398,3093.2,3092.7,0.32333]
[1732074790939,0.08083398,3093.2,3092.5,0.32336]
[1732074790940,3.31373398,3093.2,3092.5,0.32336]
[1732074791117,3.72832738,3093.2,3092.5,0.32336]
[1732074791647,3.72832738,3093.2,3092.6,0.32335]
[1732074792254,0.49542738,3093.2,3092.5,0.32336]
[1732074792436,3.72832738,3093.2,3092.5,0.32336]
[1732074792910,0.49542738,3093.2,3092.5,0.32336]
[1732074793110,0.08083398,3093.2,3092.6,0.32335]
[1732074793317,0.08083398,3093.2,3092.5,0.32336]
[1732074793532,0.08083398,3093.2,3092.7,0.32333]
[1732074793747,0.08083972,3093.2,3092.5,0.32336]
[1732074793954,0.08083972,3093.2,3092.4,0.7886]
[1732074794154,3.23301,3093.1,3092.4,1.11196]
[1732074794371,0.08083894,3093.0,3092.4,1.11196]
[1732074794861,0.08083894,3093.0,3092.4,0.7886]
[1732074795041,3.2333,3092.9,3092.4,0.7886]
[1732074795355,0.08083896,3092.8,3092.4,0.7886]
[1732074795711,0.90833896,3092.8,3092.2,0.8306]
[1732074795912,4.14165896,3092.8,3092.1,0.32339]
[1732074796108,4.14165896,3092.8,3092.0,0.32341]
[1732074796365,3.23314,3093.0,3092.4,0.32336]
[1732074796563,3.3139893,3093.0,3092.4,0.32336]
[1732074796774,3.23326,3092.9,3092.3,0.8306]
[1732074796928,0.08084128,3092.8,3092.3,1.15398]
[1732074797129,3.64728893,3093.0,3092.4,0.32336]
[1732074797332,3.23314,3093.0,3092.4,0.32336]
[1732074797541,0.08084124,3092.9,3092.4,0.32336]
[1732074797773,0.08084124,3092.9,3092.3,0.8306]
[1732074797774,3.31405124,3092.9,3092.3,0.8306]
[1732074797944,3.23333,3092.8,3092.3,0.8306]
[1732074798142,0.08084123,3092.7,3092.3,0.8306]
[1732074798341,0.08084124,3093.0,3092.3,1.15398]
[1732074798536,3.23313,3093.0,3092.3,1.15398]
[1732074798737,5.02616466,3093.1,3092.4,0.32336]
[1732074798940,0.90834124,3093.1,3092.3,0.8306]
[1732074799142,0.8275,3093.1,3092.8,0.32333]
[1732074799438,0.8325,3093.3,3092.9,0.32331]
[1732074799748,0.8325,3093.3,3093.0,0.3233]
[1732074800146,0.005,3093.3,3093.2,0.32328]
[1732074800752,0.005,3093.3,3092.9,0.32331]
[1732074800953,0.8325,3093.3,3092.8,0.8306]
[1732074801252,0.8325,3093.3,3092.7,0.32333]
[1732074801462,0.08083206,3093.2,3092.7,0.32333]
[1732074801627,3.23293,3093.2,3092.5,1.15396]
[1732074801838,0.8325,3093.3,3092.7,0.32333]
[1732074802067,0.91333761,3093.3,3092.7,0.32333]
[1732074802474,3.23289,3093.2,3092.6,0.32335]
[1732074802768,3.64751276,3093.2,3092.6,0.32335]
[1732074803337,3.64751276,3093.2,3092.4,0.32337]
[1732074803338,3.23318,3093.0,3092.4,0.32337]
[1732074803533,0.8275,3092.8,3092.4,0.32337]
[1732074803762,0.08084298,3092.7,3092.4,0.32337]
[1732074804297,0.8275,3092.8,3092.4,0.32337]
[1732074805603,0.08084296,3092.7,3092.2,1.15399]
[1732074805906,0.406067,3092.8,3092.4,0.32337]
[1732074806053,3.23318,3093.0,3092.2,1.14439]
[1732074806255,3.639338,3092.9,3092.2,1.14439]
[1732074806499,3.72018616,3092.9,3092.2,1.14439]
[1732074806705,3.72018616,3092.9,3092.0,0.32341]
[1732074806706,3.23339,3092.8,3092.0,0.32341]
[1732074806860,3.23339,3092.8,3091.9,0.821]
[1732074806861,3.23381,3092.4,3091.9,0.821]
[1732074808986,0.37202962,3092.7,3092.1,0.32339]
[1732074809300,0.8274,3092.8,3092.3,0.32338]
[1732074809771,0.8274,3092.8,3092.4,0.32337]
[1732074810193,0.8274,3093.1,3092.5,0.32336]
[1732074810601,3.23322,3092.9,3092.3,0.32337]
[1732074810757,0.323322,3092.8,3092.3,0.32337]
[1732074811208,3.23322,3092.9,3092.3,0.32337]
[1732074811798,3.23322,3092.9,3092.1,1.1444]
[1732074811799,3.23322,3092.9,3092.2,0.32339]
[1732074811973,3.31417807,3092.8,3092.1,1.14439]
[1732074812172,0.65473981,3092.7,3092.1,1.14439]
[1732074812757,0.08084806,3092.9,3092.1,1.14439]
[1732074812956,0.08084806,3092.9,3092.4,0.32337]
[1732074813159,3.0,3093.0,3092.5,0.32336]
[1732074813359,0.8274,3093.1,3092.7,0.32333]
[1732074813595,0.90823802,3093.1,3092.7,0.32333]
[1732074814466,0.8274,3093.1,3092.7,0.32333]
[1732074815273,0.91323757,3093.3,3092.8,0.32332]
[1732074815511,0.33185876,3093.2,3092.7,0.32333]
[1732074816509,0.0808376,3093.1,3092.6,1.14435]
[1732074816663,0.52862823,3093.1,3092.6,1.14435]
[1732074817063,3.76168823,3093.1,3092.5,0.32336]
[1732074817307,3.23311,3093.0,3092.5,0.32336]
[1732074817467,0.08083833,3092.9,3092.5,0.32336]
[1732074818374,3.31383833,3093.1,3092.5,0.32336]
[1732074818603,3.2331,3093.0,3092.5,0.32336]
[1732074818768,0.0808383,3092.9,3092.5,0.32336]
[1732074819535,0.0808383,3092.9,3092.3,1.14437]
[1732074819536,0.08083834,3093.0,3092.7,0.32334]
[1732074819721,0.91323796,3093.3,3092.7,0.32334]
[1732074819928,0.38324,3093.2,3092.7,0.32334]
[1732074820325,0.38324,3093.2,3092.8,0.32332]
[1732074820534,0.38324,3093.2,3092.7,0.32334]
[1732074821752,3.61613,3093.2,3092.6,0.32335]
[1732074822059,0.53377498,3093.1,3092.3,1.14438]
[1732074822269,3.23319,3093.0,3092.3,1.14438]
[1732074822471,3.23363,3092.5,3092.0,0.7763]
[1732074822679,0.88764756,3092.9,3092.0,0.7763]
[1732074822680,0.08085463,3092.6,3092.0,0.7763]
[1732074822858,3.23332,3092.8,3092.1,0.32339]
[1732074823177,3.23332,3092.8,3092.3,0.32338]
[1732074823178,0.97722791,3092.8,3092.3,0.32338]
[1732074823926,0.97722791,3092.8,3092.3,0.64675]
[1732074824173,0.97722791,3092.8,3092.3,0.32337]
[1732074824878,0.005,3093.3,3092.6,0.7763]
[1732074824879,9.6334026,3093.3,3092.6,0.7763]
[1732074825062,4.04462,3093.3,3092.8,0.32333]
[1732074825232,4.04462,3093.3,3092.6,0.7763]
[1732074825233,4.12545716,3093.3,3092.6,0.7763]
[1732074825568,4.12545716,3093.3,3092.7,0.32333]
[1732074826276,3.23292,3093.2,3092.6,1.09965]
[1732074826488,0.0808381,3093.1,3092.6,1.09965]
[1732074826764,0.0808381,3093.1,3092.7,0.32333]
[1732074827440,3.31374765,3093.2,3092.7,0.32333]
[1732074827637,0.08083765,3093.2,3092.7,0.32333]
[1732074829175,1.05277807,3093.2,3092.6,0.7763]
[1732074829389,3.23309,3093.1,3092.6,0.7763]
[1732074829666,0.08083807,3093.0,3092.6,0.7763]
[1732074829826,0.08083807,3093.0,3092.6,1.09964]
[1732074830661,0.08083807,3093.0,3092.6,0.7763]
[1732074831131,3.23328,3092.9,3092.3,0.32338]
[1732074831438,3.23328,3092.9,3092.0,0.32341]
[1732074831439,0.08084666,3092.8,3092.0,0.32341]
[1732074831767,0.33141267,3092.7,3092.1,0.32339]
[1732074831973,3.56483267,3092.7,3092.1,0.32339]
[1732074832274,3.23355,3092.6,3092.1,0.32339]
[1732074832569,3.23355,3092.6,3091.9,1.09971]
[1732074832769,3.91338027,3092.6,3091.9,1.09971]
[1732074833136,3.91338027,3092.6,3092.0,0.32341]
[1732074834042,3.23375,3092.4,3091.9,0.7763]
[1732074834347,3.91338027,3092.6,3091.9,0.7763]
[1732074834652,3.99423451,3092.6,3091.9,0.7763]
[1732074835272,3.99423451,3092.6,3092.0,0.32341]
[1732074835446,3.91338027,3092.6,3092.0,0.3234]
[1732074837046,3.91338027,3092.6,3092.1,0.3234]
[1732074837448,3.23355,3092.6,3092.1,0.3234]
[1732074837708,0.33141267,3092.7,3092.1,0.3234]
[1732074837990,3.56489267,3092.7,3092.1,0.3234]
[1732074838983,6.4008861,3092.9,3092.2,0.7763]
[1732074838984,0.8068,3092.9,3092.2,0.7763]
[1732074839190,0.08084635,3092.8,3092.3,0.32337]
[1732074840489,3.31417635,3092.8,3092.3,0.32337]
[1732074840688,0.08084635,3092.8,3092.3,0.32337]
[1732074841269,1.39507829,3092.8,3092.2,0.7763]
[1732074841502,3.23365,3092.5,3092.0,0.7763]
[1732074841699,1.39507829,3092.8,3092.0,0.7763]
[1732074841700,3.23396,3092.2,3092.0,0.7763]
[1732074841920,3.23396,3092.2,3091.5,0.32345]
[1732074841921,3.23385,3092.3,3091.7,1.09974]
[1732074842294,0.08086038,3092.2,3091.7,1.09974]
[1732074842788,0.08086038,3092.2,3091.7,0.7763]
[1732074842789,3.31482038,3092.2,3091.7,0.7763]
[1732074843287,4.05035542,3092.2,3091.4,0.7763]
[1732074843492,3.23416,3092.0,3091.4,1.09977]
[1732074843692,3.23416,3092.0,3091.5,0.32346]
[1732074843905,3.23416,3092.0,3091.4,1.09977]
[1732074843906,3.23428,3091.9,3091.4,0.7763]
[1732074844123,3.64664968,3091.9,3091.4,0.7763]
[1732074844367,1.21916968,3091.9,3091.4,0.7763]
[1732074844567,3.23436,3091.8,3091.4,0.7763]
[1732074844725,0.08086873,3091.7,3091.4,0.7763]
[1732074845252,0.0808687,3091.7,3091.1,0.3235]
[1732074845408,0.44535915,3091.7,3091.2,0.32349]
[1732074845606,3.23442,3091.8,3091.2,0.32349]
[1732074846212,3.23442,3091.8,3091.1,1.0998]
[1732074846416,3.23416,3092.0,3091.4,0.32347]
[1732074847012,0.08086893,3092.1,3091.5,0.32345]
[1732074847251,4.04076,3092.2,3091.5,1.09975]
[1732074847564,4.04076,3092.2,3091.6,0.32344]
[1732074847713,3.23406,3092.1,3091.6,0.32344]
[1732074848133,4.04076,3092.2,3091.6,0.32344]
[1732074848426,7.2748,3092.2,3091.6,0.32344]
[1732074848753,3.23406,3092.1,3091.6,0.32344]
[1732074848925,3.23406,3092.1,3091.5,0.7763]
[1732074849160,3.23406,3092.1,3091.6,0.32345]
[1732074849747,3.23406,3092.1,3091.5,0.7763]
[1732074849945,4.04077,3092.2,3091.5,0.7763]
[1732074850314,3.23416,3092.0,3091.5,0.7763]
[1732074850642,0.48494467,3092.1,3091.2,0.7724]
[1732074850852,0.08086767,3092.1,3091.2,0.7724]
[1732074851262,3.23425,3091.9,3091.2,0.7724]
[1732074851463,3.2345,3091.7,3091.2,0.7724]
[1732074851782,0.08087198,3091.6,3091.2,1.09589]
[1732074852307,3.23408,3092.1,3091.2,1.09589]
[1732074852594,0.48495993,3092.0,3091.2,1.09589]
[1732074853165,0.48495993,3092.0,3091.4,0.32347]
[1732074853166,0.08087193,3092.0,3091.4,0.32347]
[1732074853360,0.08087193,3092.0,3090.7,0.38719754]
[1732074853361,3.3149515,3092.1,3091.0,0.7724]
[1732074853564,3.3149515,3092.1,3091.6,0.7724]
[1732074853773,6.23384,3092.3,3091.6,0.7724]
[1732074853774,3.23394,3092.2,3091.6,0.7724]
[1732074853958,3.939324,3092.2,3091.6,0.7724]
[1732074854150,0.82,3092.7,3092.0,0.3234]
[1732074854351,3.23341,3092.8,3092.1,0.7724]
[1732074854651,3.23349,3092.7,3092.1,0.7724]
[1732074854852,3.23363,3092.5,3092.1,0.7724]
[1732074855053,4.13459246,3092.4,3091.8,0.7724]
[1732074855258,3.234,3092.2,3091.8,0.7724]
[1732074856153,3.23414,3092.1,3091.8,0.7724]
[1732074856353,3.23414,3092.1,3091.2,0.32349]
[1732074856354,3.23431,3091.9,3091.5,0.7724]
[1732074856557,0.08086811,3092.1,3091.5,0.7724]
[1732074856762,3.23442,3091.8,3091.2,0.7724]
[1732074857110,0.405442,3091.7,3091.2,0.7724]
[1732074857282,3.23442,3091.8,3091.2,1.09589]
[1732074857898,3.23448,3091.7,3091.2,0.7724]
[1732074858106,3.23442,3091.8,3091.2,1.09589]
[1732074858715,3.23442,3091.8,3091.3,0.32348]
[1732074858914,3.23418,3092.0,3091.3,0.32348]
[1732074859137,0.405418,3091.9,3091.3,0.32348]
[1732074859299,3.639698,3091.9,3091.3,0.32348]
[1732074859504,0.405418,3091.9,3091.4,0.32347]
[1732074859811,0.405418,3091.9,3091.2,1.09589]
[1732074860120,3.639678,3091.9,3091.2,1.09589]
[1732074860434,3.9217458,3091.8,3091.2,1.09589]
[1732074862206,3.9217458,3091.8,3091.2,0.7724]
[1732074862410,3.23458,3091.6,3091.2,0.7724]
[1732074863095,4.05458,3091.6,3090.9,1.09592]
[1732074863313,4.05458,3091.6,3090.9,0.7724]
[1732074863474,3.23482,3091.4,3090.9,0.7724]
[1732074864267,3.31576113,3091.3,3090.9,0.7724]
[1732074864383,3.23486,3091.4,3090.9,0.7724]
[1732074864576,3.23488,3091.3,3090.9,0.7724]
[1732074864911,3.23502,3091.2,3090.7,0.7575]
[1732074865118,0.69283112,3091.2,3090.7,0.7575]
[1732074865410,3.2353,3090.9,3090.4,0.7575]
[1732074865714,0.08089435,3090.8,3090.4,0.7575]
[1732074866572,0.08089435,3090.8,3090.4,1.08107]
[1732074866784,4.05249,3091.1,3090.5,0.32356]
[1732074867113,0.8174,3091.6,3091.1,0.3235]
[1732074867319,4.05197,3091.6,3090.9,1.08102]
[1732074867469,4.028647,3091.5,3090.9,1.08102]
[1732074867911,6.23478,3091.4,3090.9,0.7575]
[1732074869119,3.8174,3091.6,3090.9,0.7575]
[1732074869284,3.23468,3091.5,3091.0,0.32351]
[1732074869490,3.0,3091.4,3091.0,0.32351]
[1732074869674,6.23479,3091.4,3090.9,0.7575]
[1732074871775,3.23502,3091.2,3090.9,0.7575]
[1732074872013,0.08088416,3091.1,3090.9,0.7575]
[1732074872716,4.182001,3091.2,3090.5,0.7575]
[1732074872921,6.23481,3091.4,3090.5,0.7575]
[1732074872922,3.23488,3091.3,3090.8,0.32353]
[1732074873128,3.92888,3091.3,3090.8,0.32353]
[1732074873782,0.694,3091.3,3090.8,0.32353]
[1732074874523,0.694,3091.3,3090.9,0.7575]
[1732074875275,3.92888,3091.3,3090.9,0.7575]
[1732074876678,3.2348,3091.4,3090.9,0.7575]
[1732074877421,3.70519,3091.5,3090.9,1.08102]
[1732074877579,3.70519,3091.5,3091.0,0.32351]
[1732074878016,0.8174,3091.6,3091.1,0.3235]
[1732074879014,4.05198,3091.6,3091.1,0.3235]
[1732074879358,4.05198,3091.6,3090.9,0.7575]
[1732074879359,3.31561963,3091.5,3090.9,0.7575]
[1732074879569,3.31561963,3091.5,3090.9,1.08102]
[1732074879570,0.73675996,3091.4,3090.9,1.08102]
[1732074879719,3.23474,3091.5,3090.9,1.08102]
[1732074880156,3.31561996,3091.5,3090.9,1.08102]
[1732074880461,3.23478,3091.4,3090.9,0.7575]
[1732074880976,3.23491,3091.3,3090.9,0.7575]
[1732074881866,0.405218,3091.4,3090.9,0.7075]
[1732074882067,0.405218,3091.4,3090.9,1.03103]
[1732074882269,0.405218,3091.4,3090.9,0.7075]
[1732074882441,3.640058,3091.4,3090.9,0.7075]
[1732074884227,3.23503,3091.2,3090.9,0.7075]
[1732074884431,0.37209413,3091.3,3090.9,1.03102]
[1732074884647,3.2348,3091.4,3090.9,0.7075]
[1732074885757,3.23489,3091.3,3090.9,0.7075]
[1732074886072,3.881959,3091.2,3090.9,0.7075]
[1732074886472,0.646969,3091.2,3090.9,0.7075]
[1732074891487,0.08088321,3091.1,3090.7,0.8004]
[1732074892369,3.882009,3091.2,3090.7,0.8004]
[1732074892965,3.2352,3091.0,3090.7,0.8004]
[1732074893194,0.08088532,3090.9,3090.4,0.8004]
[1732074893363,3.31627532,3090.9,3090.4,0.8004]
[1732074893697,3.23541,3090.8,3090.4,0.8004]
[1732074893904,0.08089466,3090.7,3090.4,0.8004]
[1732074894567,3.23541,3090.8,3090.4,0.8004]
[1732074896074,0.8175,3091.1,3090.4,0.8004]
[1732074896075,4.05266,3091.1,3090.5,0.32356]
[1732074896931,3.0,3091.3,3090.7,0.8004]
[1732074897125,3.940292,3091.2,3090.7,0.8004]
[1732074897566,0.705232,3091.2,3090.7,0.8004]
[1732074897772,3.23482,3091.4,3090.8,0.32353]
[1732074898485,3.31556389,3091.5,3090.9,0.32352]
[1732074899881,3.23461,3091.6,3091.0,1.12391]
[1732074900258,0.08087864,3091.5,3091.0,0.8004]
[1732074900458,3.31558864,3091.5,3091.0,0.8004]
[1732074901556,3.23471,3091.5,3091.0,0.8004]
[1732074901975,6.55034863,3091.5,3091.0,0.8004]
[1732074902139,3.23471,3091.5,3091.0,0.8004]
[1732074902569,3.23481,3091.4,3091.0,0.8004]
[1732074902766,3.23491,3091.3,3091.0,0.8004]
[1732074903146,3.2351,3091.1,3090.6,1.12395]
[1732074903544,6.46987,3091.3,3090.6,1.12395]
[1732074903792,3.640231,3091.2,3090.6,1.12395]
[1732074907651,0.405241,3091.2,3090.8,0.32354]
[1732074907873,3.2347,3091.5,3090.9,0.8004]
[1732074908076,1.29557434,3091.4,3090.9,0.8004]
[1732074908289,1.29557434,3091.4,3091.0,0.32351]
[1732074908451,8.91483705,3091.6,3091.0,0.32351]
[1732074908795,3.23467,3091.5,3090.9,1.12393]
[1732074908946,1.20686253,3091.4,3090.9,0.8004]
[1732074909590,4.44165253,3091.4,3090.9,1.12392]
[1732074909891,4.44165253,3091.4,3090.9,0.8004]
[1732074910267,3.23502,3091.2,3090.7,0.8024]
[1732074910468,0.0808822,3091.1,3090.7,0.8024]
[1732074912852,3.23549,3090.8,3090.2,0.3236]
[1732074913228,3.3164045,3090.7,3090.3,0.8024]
[1732074914127,3.23572,3090.5,3090.3,0.8024]
[1732074914285,3.31661847,3090.5,3090.3,0.8024]
[1732074914483,3.23551,3090.7,3090.3,0.8024]
[1732074914820,0.403251,3090.6,3090.3,0.8024]
[1732074916625,0.403251,3090.6,3090.1,1.12601]
[1732074916985,3.638961,3090.6,3090.1,0.8024]
[1732074917187,3.23574,3090.5,3090.1,0.8024]
[1732074918389,0.403251,3090.6,3090.1,0.8024]
[1732074919034,3.5996061,3090.5,3090.1,0.8024]
[1732074919235,3.23583,3090.4,3090.1,0.8024]
[1732074920843,0.3638761,3090.5,3090.1,0.8024]
[1732074921030,3.5996161,3090.5,3090.1,0.8024]
[1732074921236,3.23603,3090.2,3089.3,0.8024]
[1732074921400,3.31713039,3090.1,3089.4,0.32368]
[1732074921742,3.23626,3090.0,3089.4,0.32368]
[1732074922242,0.0809145,3089.9,3089.4,0.32368]
[1732074922444,0.0809145,3089.9,3089.3,0.8024]
[1732074922445,3.23653,3089.8,3089.3,0.8024]
[1732074922946,3.23657,3089.7,3089.3,0.8024]
[1732074923144,3.31761155,3089.6,3089.3,0.8024]
[1732074923331,0.323653,3089.7,3089.3,0.8024]
[1732074923527,0.797,3090.1,3089.4,0.32367]
[1732074923528,6.23615,3090.1,3089.4,0.32367]
[1732074923850,3.23626,3090.0,3089.5,0.8024]
[1732074924054,4.03501215,3090.1,3089.6,0.32366]
[1732074924816,4.3965961,3090.5,3089.9,0.32363]
[1732074925017,4.03272,3090.5,3090.0,0.7555]
[1732074925332,3.23562,3090.6,3090.0,1.07912]
[1732074925333,3.23563,3090.6,3090.0,1.07912]
[1732074925550,3.31653454,3090.6,3090.0,1.07912]
[1732074926430,0.08090454,3090.7,3090.2,0.3236]
[1732074926630,4.01104,3090.8,3090.2,0.3236]
[1732074926832,0.08090181,3090.9,3090.3,0.32358]
[1732074927036,0.41251399,3090.9,3090.3,0.32358]
[1732074927243,0.41251399,3090.9,3090.4,0.7555]
[1732074927445,3.56691218,3090.9,3090.4,0.7555]
[1732074927663,0.33161218,3090.9,3090.4,0.7555]
[1732074927816,3.23547,3090.8,3090.4,0.7555]
[1732074928022,4.00134994,3090.8,3090.4,0.7555]
[1732074928571,0.76587994,3090.8,3090.4,0.7555]
[1732074929964,4.00129994,3090.8,3090.4,0.7555]
[1732074931617,0.08089769,3090.7,3090.4,0.7555]
[1732074931817,3.23586,3090.4,3090.1,0.7555]
[1732074932049,0.08089769,3090.7,3090.1,0.7555]
[1732074932050,3.64392976,3090.6,3090.1,0.7555]
[1732074932252,0.08090393,3090.5,3090.1,0.7555]
[1732074932521,3.31669393,3090.5,3090.1,0.7555]
[1732074933550,3.23582,3090.4,3090.1,0.7555]
[1732074933793,3.31691392,3090.3,3089.8,0.7555]
[1732074933990,3.23604,3090.2,3089.8,0.7555]
[1732074934195,3.23604,3090.2,3089.5,0.7555]
[1732074934509,3.23604,3090.2,3089.6,0.32366]
[1732074934661,3.60090265,3090.2,3089.6,0.32366]